bitfinex-derivatives/quotes_BTCF0:USTF0_20240910
["timestamp","ask_amount","ask_price","bid_price","bid_amount"]
[1725970600458,0.21384408,57344.0,57343.0,0.09419]
[1725970601354,0.17021773,57344.0,57343.0,0.22707589]
[1725970602349,0.17021773,57344.0,57343.0,0.31351794]
[1725970603858,0.02665508,57344.0,57343.0,0.18063205]
[1725970604055,0.02665508,57344.0,57343.0,0.31351788]
[1725970604354,0.11384308,57344.0,57343.0,0.31351788]
[1725970604561,0.11384308,57344.0,57343.0,0.31251788]
[1725970605156,0.21384308,57344.0,57343.0,0.17963205]
[1725970605462,0.21384308,57344.0,57343.0,0.09319]
[1725970606555,0.12665508,57344.0,57343.0,0.09319]
[1725970606761,0.21384308,57344.0,57343.0,0.006]
[1725970607053,0.21384308,57344.0,57343.0,0.09319]
[1725970608757,0.001,57344.0,57343.0,0.09319]
[1725970612663,0.001,57344.0,57343.0,0.26757]
[1725970614859,0.001,57344.0,57343.0,0.09319]
[1725970615061,0.088188,57344.0,57343.0,0.09319]
[1725970619057,0.11405386,57344.0,57343.0,0.09319]
[1725970620672,0.02686586,57344.0,57343.0,0.09319]
[1725970622372,0.001,57344.0,57343.0,0.09319]
[1725970622569,0.0041,57363.0,57352.0,0.087176]
[1725970622570,0.087169,57357.0,57352.0,0.087176]
[1725970622766,0.087169,57357.0,57356.0,0.08717]
[1725970622963,0.087169,57357.0,57356.0,0.08757]
[1725970623166,0.087169,57357.0,57356.0,0.08717]
[1725970623568,0.12525869,57358.0,57352.0,0.0004]
[1725970623776,0.27435,57353.0,57352.0,0.0004]
[1725970624274,1.39743,57353.0,57352.0,0.0004]
[1725970624461,1.41134652,57353.0,57352.0,0.0004]
[1725970624969,1.40243,57353.0,57352.0,0.0004]
[1725970625370,1.221255,57353.0,57352.0,0.0014]
[1725970625575,0.721255,57353.0,57352.0,0.0014]
[1725970625773,0.198175,57353.0,57352.0,0.0014]
[1725970626074,0.193175,57353.0,57352.0,0.0014]
[1725970626274,0.194175,57353.0,57352.0,0.0014]
[1725970626873,0.193175,57353.0,57352.0,0.0014]
[1725970627062,0.198175,57353.0,57352.0,0.0014]
[1725970627980,0.011,57353.0,57352.0,0.088576]
[1725970628173,0.111,57353.0,57352.0,0.088576]
[1725970630265,0.011,57353.0,57352.0,0.088576]
[1725970631170,0.111,57353.0,57352.0,0.088576]
[1725970631480,0.111,57353.0,57352.0,0.0014]
[1725970631481,0.25169184,57353.0,57352.0,0.0014]
[1725970632771,0.25169184,57353.0,57352.0,0.088576]
[1725970633482,0.27793083,57353.0,57352.0,0.088576]
[1725970635574,0.22441399,57353.0,57352.0,0.088576]
[1725970635880,0.22441399,57353.0,57352.0,0.0014]
[1725970638279,0.198175,57353.0,57352.0,0.0014]
[1725970644083,0.198175,57353.0,57352.0,0.088576]
[1725970644490,0.111,57353.0,57352.0,0.088576]
[1725970646089,0.011,57353.0,57352.0,0.275752]
[1725970646483,0.011,57353.0,57352.0,0.798832]
[1725970647789,0.06451386,57353.0,57352.0,0.798832]
[1725970647992,0.06451386,57353.0,57352.0,0.175752]
[1725970648189,0.011,57353.0,57352.0,0.175752]
[1725970651497,0.011,57353.0,57352.0,0.088576]
[1725970659103,0.098175,57353.0,57352.0,0.0014]
[1725970661099,0.011,57353.0,57352.0,0.0014]
[1725970661404,0.0091,57353.0,57352.0,0.088576]
[1725970661897,0.0626202,57353.0,57352.0,0.088576]
[1725970663410,0.0091,57353.0,57352.0,0.088576]
[1725970668200,0.1091,57353.0,57352.0,0.088576]
[1725970673413,0.1091,57353.0,57352.0,0.14050736]
[1725970673909,0.1091,57353.0,57352.0,0.088576]
[1725970674213,0.1091,57353.0,57352.0,0.14056247]
[1725970674402,0.1091,57353.0,57352.0,0.14056643]
[1725970674611,0.1091,57353.0,57352.0,0.088576]
[1725970674805,0.1091,57353.0,57352.0,0.14056651]
[1725970675002,0.1091,57353.0,57352.0,0.088576]
[1725970675202,0.1091,57353.0,57352.0,0.14056594]
[1725970678708,0.1091,57353.0,57352.0,0.088576]
[1725970679212,0.1091,57353.0,57352.0,0.14059944]
[1725970679515,0.1091,57353.0,57352.0,0.088576]
[1725970679710,0.196275,57353.0,57352.0,0.0014]
[1725970680817,0.1091,57353.0,57352.0,0.088576]
[1725970681027,0.196275,57353.0,57352.0,0.088576]
[1725970683416,0.196275,57353.0,57352.0,0.0014]
[1725970683916,0.24979497,57353.0,57352.0,0.0014]
[1725970685722,0.24979497,57353.0,57352.0,0.088576]
[1725970685921,0.24569497,57353.0,57352.0,0.090576]
[1725970686321,0.24069497,57353.0,57352.0,0.090576]
[1725970686516,0.24169497,57353.0,57352.0,0.093576]
[1725970687226,0.24069497,57353.0,57352.0,0.093576]
[1725970687422,0.24069497,57353.0,57352.0,0.0064]
[1725970688624,0.32786997,57353.0,57352.0,0.0064]
[1725970688920,0.32786997,57353.0,57352.0,0.0034]
[1725970688921,0.32787272,57353.0,57352.0,0.0034]
[1725970689129,0.32787272,57353.0,57352.0,0.0044]
[1725970689520,0.32787272,57353.0,57352.0,0.0024]
[1725970689721,0.33287272,57353.0,57352.0,0.0024]
[1725970690326,0.25069772,57353.0,57352.0,0.0014]
[1725970692018,0.193375,57353.0,57352.0,0.0014]
[1725970694225,0.197175,57353.0,57352.0,0.088576]
[1725970695527,0.197175,57353.0,57352.0,0.0014]
[1725970697927,0.28435,57353.0,57352.0,0.0014]
[1725970698428,0.68435,57353.0,57352.0,0.0014]
[1725970698729,0.28435,57353.0,57352.0,0.0014]
[1725970698934,0.337873,57353.0,57352.0,0.0014]
[1725970699123,0.087187,57345.0,57344.0,0.0041]
[1725970699426,0.087191,57343.0,57339.0,0.0466]
[1725970699731,0.1,57340.0,57339.0,0.0466]
[1725970699921,0.153523,57340.0,57339.0,0.0466]
[1725970700325,0.1,57340.0,57339.0,0.0466]
[1725970700629,0.1,57340.0,57339.0,0.133796]
[1725970701131,0.101,57340.0,57339.0,0.142796]
[1725970702028,0.102,57340.0,57339.0,0.145796]
[1725970703443,0.002,57340.0,57339.0,0.145796]
[1725970707338,0.002,57340.0,57339.0,0.332992]
[1725970709634,0.002,57340.0,57339.0,0.420188]
[1725970709830,0.0041,57352.0,57350.0,0.087178]
[1725970710031,0.187178,57351.0,57350.0,0.087178]
[1725970711139,0.1,57351.0,57350.0,0.087178]
[1725970711336,0.02608327,57356.0,57355.0,0.087171]
[1725970711535,0.02608327,57356.0,57355.0,0.087571]
[1725970711536,0.1,57356.0,57355.0,0.087571]
[1725970712438,0.27985345,57416.0,57355.0,0.087571]
[1725970712439,0.087158,57364.0,57363.0,0.087157]
[1725970712628,0.187158,57364.0,57363.0,0.087557]
[1725970713630,0.192158,57364.0,57363.0,0.087557]
[1725970714039,0.24566999,57364.0,57363.0,0.087557]
[1725970714342,0.27081114,57364.0,57363.0,0.087557]
[1725970714740,0.27581114,57364.0,57363.0,0.087557]
[1725970715435,0.27181114,57364.0,57363.0,0.088557]
[1725970715637,0.27681114,57364.0,57363.0,0.088557]
[1725970720044,0.18965314,57364.0,57363.0,0.088557]
[1725970720740,0.06451199,57364.0,57363.0,0.262875]
[1725970721243,0.011,57364.0,57363.0,0.310575]
[1725970721542,0.0012,57364.0,57363.0,1.433575]
[1725970722446,0.0012,57364.0,57363.0,1.45951632]
[1725970724649,0.0012,57364.0,57363.0,0.85951632]
[1725970724845,0.0012,57364.0,57363.0,0.223416]
[1725970725143,0.0012,57364.0,57363.0,0.088557]
[1725970725844,0.1012,57364.0,57363.0,0.088557]
[1725970727441,0.0012,57364.0,57363.0,0.188557]
[1725970728145,0.0012,57364.0,57363.0,0.248557]
[1725970728840,0.0012,57364.0,57363.0,1.633034]
[1725970728841,1e-06,57364.0,57363.0,1.633034]
[1725970729545,0.0041,57374.0,57373.0,0.261432]
[1725970729733,0.0041,57384.0,57383.0,0.087129]
[1725970729934,0.05348944,57384.0,57383.0,0.0008]
[1725970730138,0.087122,57388.0,57375.0,0.0041]
[1725970730343,0.05348875,57387.0,57377.0,0.16]
[1725970730541,0.05348875,57386.0,57385.0,0.087126]
[1725970732342,0.06748875,57386.0,57385.0,0.088126]
[1725970732845,0.06748875,57386.0,57385.0,0.089126]
[1725970733248,0.22748875,57386.0,57385.0,0.089126]
[1725970735752,0.06748875,57386.0,57385.0,0.089126]
[1725970737141,0.014,57386.0,57385.0,0.089126]
[1725970741050,0.174,57386.0,57385.0,0.089126]
[1725970741257,0.014,57386.0,57385.0,0.089126]
[1725970743261,0.014,57386.0,57385.0,0.176252]
[1725970744762,0.014,57386.0,57385.0,0.089126]
[1725970744944,0.16,57390.0,57389.0,0.08712]
[1725970745147,0.16,57390.0,57389.0,0.08792]
[1725970745148,0.247118,57390.0,57389.0,0.08792]
[1725970745349,0.334236,57390.0,57389.0,0.0008]
[1725970746147,0.348236,57390.0,57389.0,0.0028]
[1725970746853,0.101118,57390.0,57389.0,0.0028]
[1725970747161,0.261118,57390.0,57389.0,0.0028]
[1725970750753,0.261118,57390.0,57389.0,0.08992]
[1725970752167,0.31460603,57390.0,57389.0,0.08992]
[1725970756265,0.25460603,57390.0,57389.0,0.08992]
[1725970756465,0.16748803,57390.0,57389.0,0.08992]
[1725970757867,0.06748803,57390.0,57389.0,0.08992]
[1725970759266,0.014,57390.0,57389.0,0.08992]
[1725970760069,0.114,57390.0,57389.0,0.08992]
[1725970762061,0.16748676,57390.0,57389.0,0.08992]
[1725970762464,0.114,57390.0,57389.0,0.08992]
[1725970763068,0.014,57390.0,57389.0,0.08992]
[1725970763369,0.014,57390.0,57389.0,0.17704]
[1725970763866,0.014,57390.0,57389.0,1.38692]
[1725970764658,0.0041,57401.0,57400.0,0.087103]
[1725970764876,0.05347456,57401.0,57400.0,0.092503]
[1725970765069,0.0041,57421.0,57420.0,0.087073]
[1725970765370,0.1,57438.0,57420.0,0.0062]
[1725970765572,0.087035,57445.0,57437.0,0.0008]
[1725970765761,0.1,57438.0,57421.0,0.0466]
[1725970765961,0.10744601,57452.0,57421.0,0.133671]
[1725970765962,0.1,57422.0,57421.0,0.133671]
[1725970766266,0.087042,57441.0,57421.0,0.0466]
[1725970766469,0.16,57435.0,57433.0,0.087052]
[1725970766972,0.16,57435.0,57430.0,0.087058]
[1725970767179,0.0471,57439.0,57430.0,0.087058]
[1725970767180,0.16,57436.0,57430.0,0.087058]
[1725970767475,0.16,57436.0,57423.0,0.16]
[1725970767476,0.16,57436.0,57435.0,0.0008]
[1725970768569,0.1834,57475.0,57433.0,0.001]
[1725970768772,0.2896,57491.0,57433.0,0.0041]
[1725970768773,0.087046,57438.0,57433.0,0.0041]
[1725970768972,0.16,57432.0,57426.0,0.087063]
[1725970769164,0.16,57432.0,57427.0,0.087062]
[1725970769363,0.16,57432.0,57431.0,0.52232]
[1725970769869,0.087054,57433.0,57431.0,0.52232]
[1725970770070,0.087054,57433.0,57432.0,0.52312]
[1725970770573,0.087064,57426.0,57425.0,0.00252]
[1725970770765,0.087064,57426.0,57412.0,0.16]
[1725970770766,0.16,57426.0,57415.0,0.08708]
[1725970770968,0.087067,57424.0,57422.0,0.44752]
[1725970771271,0.16,57423.0,57422.0,0.44752]
[1725970772183,0.16,57423.0,57422.0,0.44852]
[1725970772674,0.16,57423.0,57422.0,0.44952]
[1725970772876,0.16,57423.0,57422.0,0.002]
[1725970773075,0.247068,57423.0,57422.0,0.002]
[1725970773672,0.247068,57423.0,57422.0,0.001]
[1725970773876,0.354568,57423.0,57422.0,0.002]
[1725970774275,0.40802197,57423.0,57422.0,0.002]
[1725970775179,0.24802197,57423.0,57422.0,0.002]
[1725970775379,0.40802197,57423.0,57422.0,0.002]
[1725970775875,0.92095397,57423.0,57410.0,0.0041]
[1725970776063,0.087083,57413.0,57412.0,0.44752]
[1725970776265,0.05345397,57413.0,57412.0,0.44752]
[1725970776475,0.34981571,57413.0,57412.0,0.44752]
[1725970776669,0.05345397,57413.0,57412.0,0.534605]
[1725970776971,0.24328642,57415.0,57413.0,0.087082]
[1725970777173,0.05346265,57414.0,57413.0,0.087082]
[1725970777374,0.05346265,57414.0,57413.0,0.687082]
[1725970777571,0.05346265,57414.0,57413.0,1.134602]
[1725970779280,0.05446265,57414.0,57413.0,1.135602]
[1725970780179,0.06046265,57414.0,57413.0,1.136602]
[1725970782379,0.007,57414.0,57413.0,1.136602]
[1725970782578,0.167,57414.0,57413.0,1.136602]
[1725970784176,0.254082,57414.0,57413.0,0.44952]
[1725970784375,0.341164,57414.0,57413.0,0.002]
[1725970785184,0.390464,57414.0,57413.0,0.002]
[1725970785988,0.087098,57404.0,57402.0,0.0871]
[1725970786179,0.2579,57403.0,57397.0,0.6]
[1725970786482,0.16,57398.0,57397.0,0.6]
[1725970786986,0.16,57398.0,57397.0,1.04752]
[1725970788081,0.16,57398.0,57397.0,1.142628]
[1725970788082,0.161,57398.0,57397.0,1.142628]
[1725970788288,0.001,57398.0,57397.0,1.142628]
[1725970788884,0.001,57398.0,57397.0,1.145628]
[1725970789987,0.001,57398.0,57397.0,1.142628]
[1725970790189,0.001,57398.0,57397.0,1.145628]
[1725970790397,0.087106,57398.0,57397.0,1.05052]
[1725970790576,0.247106,57398.0,57397.0,0.45052]
[1725970790781,0.36029077,57398.0,57397.0,0.007]
[1725970791382,0.41377152,57398.0,57397.0,0.007]
[1725970791593,0.41377152,57398.0,57397.0,0.003]
[1725970791893,0.41377152,57398.0,57397.0,0.006]
[1725970792188,0.25377152,57398.0,57397.0,0.006]
[1725970792689,0.41377152,57398.0,57397.0,0.003]
[1725970792986,0.41577152,57398.0,57397.0,0.004]
[1725970793992,0.41577152,57398.0,57397.0,0.001]
[1725970794191,0.41777152,57398.0,57397.0,0.001]
[1725970794692,0.33066552,57398.0,57397.0,0.001]
[1725970794987,0.33066552,57398.0,57397.0,0.44952]
[1725970794988,0.30858675,57398.0,57397.0,0.44952]
[1725970795184,0.14858675,57398.0,57397.0,0.536628]
[1725970795387,0.06148075,57398.0,57397.0,0.536628]
[1725970796190,0.008,57398.0,57397.0,0.536628]
[1725970796793,0.254106,57398.0,57397.0,0.44852]
[1725970797099,0.30758588,57398.0,57397.0,0.001]
[1725970797296,0.254106,57398.0,57397.0,0.001]
[1725970797684,0.341212,57398.0,57397.0,0.001]
[1725970798194,0.336212,57398.0,57397.0,0.001]
[1725970798384,0.342212,57398.0,57397.0,0.002]
[1725970798584,0.340212,57398.0,57397.0,0.001]
[1725970798894,0.342212,57398.0,57397.0,0.001]
[1725970799294,0.342212,57398.0,57397.0,0.002]
[1725970802593,0.255106,57398.0,57397.0,0.002]
[1725970802799,0.255106,57398.0,57397.0,0.44952]
[1725970803997,0.342212,57398.0,57397.0,0.44952]
[1725970804401,0.39569225,57398.0,57397.0,0.44952]
[1725970804697,0.23569225,57398.0,57397.0,0.44952]
[1725970806989,0.06148025,57398.0,57397.0,1.136628]
[1725970809392,0.06148025,57398.0,57397.0,0.44952]
[1725970809393,0.14858625,57398.0,57397.0,0.44952]
[1725970810394,0.23569225,57398.0,57397.0,0.44952]
[1725970810793,0.23569225,57398.0,57397.0,0.002]
[1725970811499,0.182212,57398.0,57397.0,0.002]
[1725970814500,0.182212,57398.0,57397.0,0.002]
[1725970814805,0.174612,57398.0,57397.0,0.002]
[1725970815001,0.08712,57389.0,57388.0,0.0041]
[1725970815203,0.08712,57389.0,57379.0,0.091834]
[1725970815204,0.087134,57380.0,57379.0,0.0041]
[1725970815406,0.087134,57380.0,57374.0,0.05]
[1725970815407,0.16,57380.0,57374.0,0.0909]
[1725970815598,0.087129,57383.0,57379.0,0.44752]
[1725970815903,0.08713,57382.0,57380.0,0.44752]
[1725970816401,0.08713,57382.0,57374.0,0.69326]
[1725970816402,0.08714,57376.0,57374.0,0.00236]
[1725970816605,0.08714,57376.0,57363.0,0.0047]
[1725970816606,0.134941,57375.0,57366.0,0.0041]
[1725970816810,0.16,57366.0,57365.0,0.0933]
[1725970817003,0.16,57366.0,57365.0,1.14082]
[1725970817202,0.16,57366.0,57365.0,1.227976]
[1725970817605,0.16,57370.0,57366.0,0.087154]
[1725970817801,0.16,57370.0,57369.0,0.0004]
[1725970817997,0.16,57374.0,57369.0,0.44792]
[1725970818196,0.16,57374.0,57371.0,0.087146]
[1725970818401,0.16,57374.0,57373.0,0.44752]
[1725970818605,0.32251098,57384.0,57373.0,0.44752]
[1725970818606,0.16,57381.0,57377.0,0.087137]
[1725970818799,0.16,57385.0,57381.0,0.44752]
[1725970819108,0.0467,57387.0,57381.0,1.04752]
[1725970819305,0.133823,57387.0,57386.0,0.44792]
[1725970819808,0.0467,57387.0,57386.0,1.04792]
[1725970819996,0.087109,57397.0,57391.0,0.087116]
[1725970820197,0.087108,57397.0,57396.0,0.0004]
[1725970820401,0.247108,57397.0,57396.0,0.44792]
[1725970820704,0.16,57397.0,57396.0,1.04792]
[1725970821109,0.247108,57397.0,57396.0,0.44792]
[1725970821719,0.247108,57397.0,57396.0,0.0004]
[1725970822216,0.249108,57397.0,57396.0,0.0004]
[1725970822711,0.247108,57397.0,57396.0,0.0004]
[1725970822913,0.249108,57397.0,57396.0,0.0014]
[1725970823207,0.253108,57397.0,57396.0,0.0014]
[1725970823903,0.254108,57397.0,57396.0,0.0014]
[1725970824509,0.253108,57397.0,57396.0,0.0014]
[1725970825007,0.339216,57397.0,57396.0,0.0004]
[1725970825211,0.340216,57397.0,57396.0,0.0014]
[1725970825721,0.340216,57397.0,57396.0,0.0004]
[1725970825722,0.339216,57397.0,57396.0,0.0004]
[1725970826012,0.340216,57397.0,57396.0,0.0014]
[1725970826513,0.08712,57389.0,57388.0,0.05177236]
[1725970826711,0.24712,57389.0,57388.0,0.05177236]
[1725970826900,0.33424,57389.0,57388.0,0.05177236]
[1725970827214,0.174252,57385.0,57384.0,0.06902981]
[1725970827516,0.334252,57385.0,57384.0,0.06902981]
[1725970828913,0.334252,57385.0,57378.0,0.08662864]
[1725970828914,0.17427,57379.0,57378.0,0.08662864]
[1725970829111,0.33427,57379.0,57378.0,0.08662864]
[1725970830508,0.087143,57374.0,57373.0,0.10386272]
[1725970830817,0.087156,57365.0,57364.0,0.0041]
[1725970831005,0.087156,57365.0,57364.0,0.44752]
[1725970831006,0.30066604,57365.0,57364.0,0.44752]
[1725970831199,0.30066604,57365.0,57355.0,0.0041]
[1725970831200,0.087168,57357.0,57355.0,0.0041]
[1725970831413,0.08717,57356.0,57355.0,0.6]
[1725970831612,0.087177,57352.0,57347.0,0.0041]
[1725970831813,0.16,57348.0,57347.0,0.6]
[1725970832314,0.16,57348.0,57347.0,1.04752]
[1725970833106,0.16,57348.0,57347.0,1.05852]
[1725970833808,0.161,57348.0,57347.0,1.07052]
[1725970836122,0.11737524,57348.0,57347.0,1.07052]
[1725970837311,0.11737524,57348.0,57347.0,1.157704]
[1725970837514,0.11737524,57348.0,57347.0,1.07052]
[1725970838915,0.11737524,57348.0,57347.0,1.157704]
[1725970839218,0.16,57355.0,57347.0,1.07052]
[1725970839423,0.18524675,57360.0,57354.0,0.44792]
[1725970839617,0.247164,57360.0,57359.0,0.44792]
[1725970839822,0.247164,57360.0,57359.0,1.04752]
[1725970840320,0.16,57363.0,57359.0,1.04752]
[1725970840516,0.16,57363.0,57362.0,0.0004]
[1725970840717,0.16,57363.0,57362.0,0.44792]
[1725970841024,0.247159,57363.0,57362.0,1.04792]
[1725970842421,0.249159,57363.0,57362.0,1.04792]
[1725970843216,0.249159,57363.0,57362.0,0.44792]
[1725970843815,0.249159,57363.0,57362.0,0.0004]
[1725970845323,0.340318,57363.0,57362.0,0.0004]
[1725970845725,0.340318,57363.0,57354.0,0.0045]
[1725970845726,0.087171,57355.0,57354.0,0.0045]
[1725970846034,0.334342,57355.0,57354.0,0.0004]
[1725970846528,0.087185,57346.0,57345.0,0.0041]
[1725970846724,0.247185,57346.0,57345.0,0.44752]
[1725970848225,0.307185,57346.0,57345.0,0.44752]
[1725970848526,0.087187,57345.0,57340.0,0.087194]
[1725970848830,0.087187,57345.0,57343.0,0.44752]
[1725970849231,0.22,57344.0,57343.0,0.44752]
[1725970849419,0.22,57344.0,57341.0,0.087192]
[1725970849733,0.22,57344.0,57343.0,0.44752]
[1725970849924,0.001,57345.0,57343.0,0.44752]
[1725970850120,0.001,57345.0,57344.0,0.49662]
[1725970850322,0.001,57345.0,57344.0,0.583808]
[1725970850529,0.001,57345.0,57344.0,1.183808]
[1725970851723,0.087181,57349.0,57344.0,1.183808]
[1725970851923,0.087181,57349.0,57348.0,0.44792]
[1725970853234,0.089181,57349.0,57348.0,0.44792]
[1725970853436,0.089181,57349.0,57348.0,1.04792]
[1725970854520,0.087181,57349.0,57348.0,1.04792]
[1725970854737,0.089181,57349.0,57348.0,1.04892]
[1725970854936,0.103181,57349.0,57348.0,0.6024]
[1725970855233,0.103181,57349.0,57348.0,1.04992]
[1725970857224,0.103181,57349.0,57348.0,0.44992]
[1725970857926,0.103181,57349.0,57348.0,0.0024]
[1725970859632,0.103181,57349.0,57348.0,0.44992]
[1725970862041,0.190363,57349.0,57348.0,0.0024]
[1725970866537,0.087197,57338.0,57337.0,0.0477]
[1725970866732,0.087197,57338.0,57337.0,0.6477]
[1725970866934,0.087197,57338.0,57337.0,1.09522]
[1725970868148,0.251197,57338.0,57337.0,1.09522]
[1725970868333,0.251197,57338.0,57327.0,0.0041]
[1725970868334,0.164,57338.0,57327.0,0.0041]
[1725970868534,0.16,57328.0,57327.0,0.6]
[1725970868840,0.007,57338.0,57330.0,0.087209]
[1725970868841,0.16,57331.0,57330.0,0.087209]
[1725970869138,0.16,57331.0,57330.0,0.687609]
[1725970869340,0.16,57331.0,57330.0,1.04792]
[1725970869533,0.247208,57331.0,57330.0,1.04792]
[1725970871141,0.247208,57331.0,57330.0,1.05192]
[1725970872038,0.247208,57331.0,57330.0,0.45192]
[1725970872536,0.247208,57331.0,57330.0,0.45392]
[1725970873139,0.16,57334.0,57330.0,1.05392]
[1725970873339,0.16,57334.0,57330.0,0.6064]
[1725970873340,0.087208,57331.0,57330.0,0.6064]
[1725970873642,0.087208,57331.0,57330.0,0.606]
[1725970873835,0.087208,57331.0,57330.0,1.05352]
[1725970874140,0.247208,57331.0,57330.0,0.45352]
[1725970874338,0.334416,57331.0,57330.0,0.45352]
[1725970874948,0.334416,57331.0,57330.0,0.006]
[1725970875148,0.334416,57331.0,57330.0,0.002]
[1725970875353,0.334416,57331.0,57330.0,0.006]
[1725970877456,0.35994459,57331.0,57330.0,0.006]
[1725970879249,0.4562154,57331.0,57330.0,0.006]
[1725970879646,0.64741404,57331.0,57330.0,0.006]
[1725970879852,0.4562154,57331.0,57330.0,0.006]
[1725970880349,0.6300125,57331.0,57330.0,0.006]
[1725970880656,0.4562154,57331.0,57330.0,0.006]
[1725970881351,0.4562154,57331.0,57330.0,0.45352]
[1725970882254,0.5253992,57331.0,57330.0,0.45352]
[1725970882444,0.3690074,57331.0,57330.0,0.45352]
[1725970882642,0.3690074,57331.0,57330.0,1.05352]
[1725970882841,0.54278006,57331.0,57330.0,1.05352]
[1725970884156,0.54279941,57331.0,57330.0,1.05352]
[1725970884454,0.3690074,57331.0,57330.0,1.05352]
[1725970885847,0.31545845,57331.0,57330.0,1.05352]
[1725970886654,0.31545845,57331.0,57330.0,0.45352]
[1725970886851,0.31545354,57331.0,57330.0,0.45352]
[1725970887247,0.27273659,57331.0,57330.0,0.45352]
[1725970887855,0.35994459,57331.0,57330.0,0.45352]
[1725970888851,0.27273659,57331.0,57330.0,0.45352]
[1725970889155,0.18552859,57331.0,57330.0,1.05352]
[1725970889363,0.18552859,57331.0,57330.0,1.14073]
[1725970889762,0.27273659,57331.0,57330.0,1.05352]
[1725970890062,0.18552859,57331.0,57330.0,1.05352]
[1725970890262,0.27273659,57331.0,57330.0,1.05352]
[1725970890761,0.27273659,57331.0,57330.0,1.10032]
[1725970894258,0.36899517,57331.0,57330.0,1.10032]
[1725970895664,0.36899517,57331.0,57330.0,1.05352]
[1725970895856,0.174458,57317.0,57315.0,0.00236]
[1725970896059,0.21354215,57317.0,57306.0,0.0469]
[1725970896262,0.247245,57307.0,57306.0,0.6469]
[1725970896460,0.21354215,57307.0,57306.0,0.6469]
[1725970896662,0.21354215,57307.0,57306.0,1.02562]
[1725970897056,0.21355985,57307.0,57306.0,1.02562]
[1725970897868,0.21655985,57307.0,57306.0,1.02662]
[1725970898068,0.22155985,57307.0,57306.0,1.02662]
[1725970901367,0.30880485,57307.0,57306.0,1.02662]
[1725970902256,0.35926566,57307.0,57306.0,1.113866]
[1725970902455,0.16,57317.0,57306.0,1.62662]
[1725970902660,0.16,57317.0,57316.0,0.0004]
[1725970902868,0.247229,57317.0,57316.0,0.37912]
[1725970903066,0.247229,57317.0,57316.0,0.97912]
[1725970903263,0.087229,57317.0,57316.0,0.97912]
[1725970904062,0.087229,57317.0,57316.0,0.98012]
[1725970904063,0.092229,57317.0,57316.0,0.98012]
[1725970904571,0.252229,57317.0,57316.0,0.97912]
[1725970904864,0.252229,57317.0,57316.0,0.98012]
[1725970905271,0.262229,57317.0,57316.0,0.98012]
[1725970905869,0.349458,57317.0,57316.0,0.98012]
[1725970907163,0.262229,57317.0,57316.0,0.98012]
[1725970907370,0.257229,57317.0,57316.0,0.98112]
[1725970909071,0.344458,57317.0,57316.0,0.98112]
[1725970910480,0.344458,57317.0,57316.0,0.38112]
[1725970916772,0.344458,57317.0,57316.0,0.98112]
[1725970916973,0.257229,57317.0,57316.0,0.98112]
[1725970917381,0.31078478,57317.0,57316.0,0.98112]
[1725970919581,0.48472329,57317.0,57316.0,0.98112]
[1725970919876,0.31078478,57317.0,57316.0,0.98112]
[1725970920972,0.57198404,57317.0,57316.0,0.98112]
[1725970921374,0.39801109,57317.0,57316.0,0.98112]
[1725970922085,0.15078209,57317.0,57316.0,0.98112]
[1725970922283,0.31078209,57317.0,57316.0,0.98112]
[1725970922785,0.22355309,57317.0,57316.0,0.98112]
[1725970923185,0.22355309,57317.0,57316.0,1.068351]
[1725970923578,0.31078209,57317.0,57316.0,1.068351]
[1725970923973,0.31078209,57317.0,57316.0,0.98112]
[1725970924380,0.344458,57317.0,57316.0,0.98112]
[1725970926292,0.257229,57317.0,57316.0,0.98112]
[1725970929998,0.344458,57317.0,57316.0,0.38112]
[1725970933508,0.174486,57308.0,57307.0,0.0041]
[1725970933703,0.14080623,57308.0,57300.0,0.0041]
[1725970934000,0.16,57304.0,57299.0,0.6]
[1725970934202,0.16,57300.0,57299.0,0.6]
[1725970934596,0.16,57300.0,57299.0,0.97872]
[1725970934996,0.16,57303.0,57299.0,0.97872]
[1725970935196,0.16,57303.0,57302.0,0.087652]
[1725970935406,0.16,57303.0,57302.0,1.066372]
[1725970935608,0.087248,57305.0,57302.0,1.066372]
[1725970935900,0.087248,57305.0,57304.0,0.0004]
[1725970936110,0.087248,57305.0,57304.0,0.37912]
[1725970936412,0.087248,57305.0,57304.0,0.97912]
[1725970937403,0.088248,57305.0,57304.0,0.97912]
[1725970937708,0.175496,57305.0,57304.0,0.97912]
[1725970938304,0.088248,57305.0,57304.0,0.97912]
[1725970938710,0.175496,57305.0,57304.0,0.97912]
[1725970939006,0.175496,57305.0,57304.0,0.98212]
[1725970939213,0.174496,57305.0,57304.0,0.38212]
[1725970939402,0.174496,57305.0,57304.0,0.38412]
[1725970940203,0.222596,57305.0,57304.0,0.38412]
[1725970941407,0.309844,57305.0,57304.0,0.0054]
[1725970941595,0.222596,57305.0,57304.0,0.0054]
[1725970944814,0.087266,57293.0,57292.0,0.0041]
[1725970945007,0.247266,57293.0,57292.0,0.6]
[1725970945207,0.247266,57293.0,57292.0,0.97872]
[1725970945208,0.334532,57293.0,57292.0,0.97872]
[1725970946105,0.335532,57293.0,57292.0,0.99172]
[1725970946404,0.336532,57293.0,57292.0,0.39972]
[1725970948317,0.249266,57293.0,57292.0,0.99972]
[1725970952019,0.27532704,57293.0,57292.0,0.99972]